bitfinex/quotes_SOLUSD_20240628
["timestamp","ask_amount","ask_price","bid_price","bid_amount"]
[1719580258261,0.8175485,144.55,144.42,23.0954]
[1719580263739,51.6698,144.54,144.42,23.0954]
[1719580264540,57.45240668,144.54,144.42,23.0954]
[1719580265164,12.89358257,144.53,144.42,23.0954]
[1719580265373,6.0809,144.52,144.39,22.6291]
[1719580265576,5.78260668,144.51,144.39,22.6291]
[1719580265744,36.33,144.5,144.39,22.6291]
[1719580267069,12.88274643,144.49,144.39,22.6291]
[1719580268049,42.11260668,144.5,144.39,22.6291]
[1719580268231,12.88717393,144.49,144.39,22.6291]
[1719580268436,8.39450434,144.52,144.39,22.6291]
[1719580268675,24.52706729,144.51,144.39,22.6291]
[1719580268844,24.52706729,144.5,144.39,22.6291]
[1719580269049,12.88721072,144.49,144.39,22.6291]
[1719580269244,12.88721072,144.51,144.39,22.6291]
[1719580269461,11.64024503,144.5,144.39,22.6291]
[1719580269671,12.88721072,144.49,144.39,22.6291]
[1719580269972,8.39450434,144.52,144.39,22.6291]
[1719580270175,24.52903202,144.51,144.39,22.6291]
[1719580270378,24.52903202,144.5,144.39,22.6291]
[1719580270557,11.64076802,144.49,144.39,22.6291]
[1719580270762,11.64076802,144.48,144.39,22.6291]
[1719580271075,8.39450434,144.52,144.39,22.6291]
[1719580271265,24.51970472,144.51,144.39,22.6291]
[1719580271463,12.88521721,144.5,144.39,22.6291]
[1719580271670,11.63804686,144.49,144.39,22.6291]
[1719580271966,14.17711102,144.52,144.39,22.6291]
[1719580272178,24.52396316,144.51,144.39,22.6291]
[1719580272352,24.52396316,144.5,144.39,22.6291]
[1719580272666,45.18373111,144.49,144.39,22.6291]
[1719580272968,32.3,144.49,144.39,22.6291]
[1719580279084,15.3398,144.54,144.4,15.9588]
[1719580279251,56.83997757,144.53,144.4,15.9588]
[1719580279454,32.3,144.53,144.4,15.9588]
[1719580280256,11.64258813,144.52,144.4,15.9588]
[1719580280460,32.3,144.53,144.4,15.9588]
[1719580280657,11.64310337,144.52,144.4,15.9588]
[1719580280880,32.3,144.53,144.4,15.9588]
[1719580281078,11.64120875,144.52,144.41,6.0084]
[1719580281389,32.3,144.53,144.42,15.2059]
[1719580283470,0.8175485,144.55,144.42,15.2059]
[1719580283471,33.1175485,144.55,144.42,15.2059]
[1719580283663,24.53825812,144.54,144.42,15.2059]
[1719580283863,11.64098741,144.54,144.42,15.2059]
[1719580284064,24.5362418,144.53,144.42,15.2059]
[1719580284265,33.1175485,144.55,144.42,15.2059]
[1719580284465,24.53494236,144.54,144.42,15.2059]
[1719580284674,24.53494236,144.53,144.42,15.2059]
[1719580284875,33.1175485,144.55,144.42,15.2059]
[1719580285073,24.53846117,144.54,144.42,15.2059]
[1719580285291,33.1175485,144.55,144.42,15.2059]
[1719580285292,11.64074036,144.53,144.42,15.2059]
[1719580285476,33.1175485,144.55,144.42,15.2059]
[1719580285787,24.54209353,144.54,144.42,15.2059]
[1719580285985,0.8175485,144.55,144.44,16.1056]
[1719580286162,33.1175485,144.55,144.44,16.1056]
[1719580287056,0.8175485,144.55,144.45,6.5102]
[1719580287286,0.8175485,144.55,144.46,16.4693]
[1719580287494,0.8175485,144.55,144.47,6.5102]
[1719580288494,0.8175485,144.55,144.48,15.0364]
[1719580288998,0.8175485,144.55,144.49,6.3784]
[1719580289785,0.8175485,144.55,144.5,22.8281]
[1719580298404,0.8175485,144.55,144.46,22.6012]
[1719580302028,32.3,144.53,144.46,22.6012]
[1719580304611,32.3,144.53,144.42,21.1594]
[1719580304812,32.3,144.5,144.42,21.1594]
[1719580305019,32.3,144.47,144.42,21.1594]
[1719580306041,32.3,144.47,144.42,15.0803]
[1719580306809,32.3,144.47,144.39,6.5292]
[1719580308916,32.3,144.48,144.39,6.5292]
[1719580315018,32.3,144.48,144.4,0.73885527]
[1719580315426,32.3,144.51,144.39,6.5292]
[1719580315757,32.3,144.51,144.4,15.5016]
[1719580315932,32.3,144.51,144.41,6.6172]
[1719580316439,32.3,144.51,144.42,16.2651]
[1719580316640,32.3,144.51,144.43,0.42790068]
[1719580317233,32.3,144.51,144.43,1.27433402]
[1719580317436,32.3,144.54,144.43,1.27433402]
[1719580317624,32.3,144.54,144.42,16.2651]
[1719580318058,32.3,144.54,144.43,6.1651]
[1719580318239,32.3,144.54,144.43,22.4302]
[1719580321868,0.8175485,144.55,144.43,22.4302]
[1719580325560,32.3,144.53,144.43,22.4302]
[1719580327254,38.08260668,144.53,144.43,22.4302]
[1719580327446,32.3,144.5,144.43,22.4302]
[1719580329440,5.78260668,144.52,144.43,22.4302]
[1719580330267,32.3,144.53,144.43,22.4302]
[1719580332750,0.8175485,144.55,144.45,22.3575]
[1719580340675,32.3,144.54,144.45,22.3575]
[1719580341216,12.88759257,144.53,144.45,22.3575]
[1719580341521,32.3,144.51,144.45,22.3575]
[1719580341875,38.08260668,144.54,144.45,22.3575]
[1719580342075,12.88763753,144.53,144.45,22.3575]
[1719580344191,12.88763753,144.52,144.45,22.3575]
[1719580344406,18.67024421,144.54,144.45,22.3575]
[1719580344811,5.78260668,144.54,144.45,22.3575]
[1719580344989,18.66593847,144.54,144.45,22.3575]
[1719580345305,12.88333179,144.54,144.45,22.3575]
[1719580346687,33.1175485,144.55,144.45,22.3575]
[1719580346889,12.88931743,144.54,144.45,22.3575]
[1719580347207,33.1175485,144.55,144.45,22.3575]
[1719580348208,12.88504197,144.54,144.45,22.3575]
[1719580348399,33.1175485,144.55,144.45,22.3575]
[1719580348710,12.87934932,144.54,144.45,22.3575]
[1719580350881,12.87199465,144.53,144.45,22.3575]
[1719580351082,12.8733006,144.52,144.45,22.3575]
[1719580351310,36.64221133,144.55,144.45,22.3575]
[1719580351492,12.87363437,144.54,144.45,22.3575]
[1719580352930,4.34221133,144.55,144.45,22.3575]
[1719580353090,0.8175485,144.55,144.45,22.3575]
[1719580354210,13.69442683,144.55,144.45,22.3575]
[1719580354409,0.8175485,144.55,144.45,22.3575]
[1719580354585,32.3,144.54,144.45,22.3575]
[1719580354789,12.87687833,144.53,144.45,22.3575]
[1719580355383,32.3,144.54,144.45,22.3575]
[1719580355582,12.86841804,144.53,144.45,22.3575]
[1719580359523,0.8175485,144.55,144.45,22.3575]
[1719580359524,0.8175485,144.55,144.46,16.4815]
[1719580359892,0.8175485,144.55,144.48,16.4815]
[1719580361219,0.8175485,144.55,144.49,6.0311]
[1719580361900,0.8175485,144.55,144.5,15.8289]
[1719580378529,33.1175485,144.55,144.5,15.8289]
[1719580379043,33.1175485,144.55,144.49,6.0311]
[1719580379216,12.87550765,144.54,144.46,22.921]
[1719580381054,33.1175485,144.55,144.46,22.921]
[1719580381220,12.87477266,144.54,144.46,22.921]
[1719580382127,32.3,144.52,144.46,16.5986]
[1719580384623,32.3,144.49,144.39,6.5842]
[1719580384820,32.3,144.46,144.39,6.5842]
[1719580385020,32.3,144.43,144.39,6.5842]
[1719580395824,32.3,144.45,144.39,6.5842]
[1719580400766,16.16,144.4,144.39,6.5842]
[1719580404633,15.1005,144.48,144.39,6.5842]
[1719580404860,32.32,144.44,144.39,6.5842]
[1719580408983,32.32,144.44,144.38,16.0276]
[1719580410239,32.32,144.41,144.35,6.6157]
[1719580410447,32.32,144.41,144.34,16.3383]
[1719580426771,16.17,144.35,144.34,16.3383]
[1719580429076,16.17,144.36,144.34,16.3383]
[1719580430395,16.17,144.35,144.31,6.0077]
[1719580430547,16.17,144.33,144.31,6.0077]
[1719580430752,16.17,144.32,144.31,6.0077]
[1719580431684,16.17,144.32,144.3,15.3189]
[1719580431860,16.17,144.34,144.3,15.3189]
[1719580431861,16.17,144.31,144.3,15.3189]
[1719580435485,16.17,144.31,144.3,15.3189]
[1719580435781,16.17,144.31,144.27,6.1924]
[1719580435782,16.17,144.31,144.27,22.7289]
[1719580436161,16.17,144.29,144.27,22.7289]
[1719580437185,16.17,144.28,144.27,22.7289]
[1719580437477,16.17,144.28,144.27,16.5365]
[1719580438657,16.17,144.28,144.23,21.6263]
[1719580440180,16.17,144.27,144.23,21.6263]
[1719580440684,16.17,144.26,144.23,21.6263]
[1719580442084,16.17,144.26,144.23,15.4859]
[1719580442288,16.17,144.25,144.23,15.4859]
[1719580443206,6.2756,144.33,144.23,15.4859]
[1719580443364,16.17,144.26,144.23,15.4859]
[1719580449510,16.17,144.25,144.2,6.5403]
[1719580449891,16.17,144.24,144.2,6.5403]
[1719580451925,6.2756,144.33,144.2,6.5403]
[1719580452087,16.17,144.27,144.2,6.5403]
[1719580452493,6.2756,144.33,144.2,6.5403]
[1719580453088,16.17,144.26,144.21,16.17]
[1719580453304,16.17,144.27,144.22,1.38631834]
[1719580453700,16.17,144.27,144.21,16.17]
[1719580453916,16.17,144.27,144.22,16.17]
[1719580455100,16.17,144.27,144.21,16.17]
[1719580455722,6.2756,144.33,144.22,16.17]
[1719580455923,6.2756,144.33,144.23,16.17]
[1719580456227,16.17,144.29,144.23,16.17]
[1719580456625,16.17,144.29,144.24,15.9088]
[1719580456804,16.17,144.29,144.24,32.0788]
[1719580457226,64.68,144.34,144.24,32.0788]
[1719580457418,15.1491,144.35,144.24,32.0788]
[1719580457727,16.17,144.31,144.25,16.17]
[1719580462331,16.17,144.31,144.25,23.124]
[1719580466226,16.17,144.31,144.26,22.5419]
[1719580466729,16.17,144.31,144.26,29.4959]
[1719580467327,15.1491,144.35,144.27,1.38580689]
[1719580467531,16.17,144.32,144.26,29.4959]
[1719580467841,16.17,144.32,144.27,16.17]
[1719580468535,6.2098,144.37,144.28,16.17]
[1719580468726,16.17,144.34,144.29,16.17]
[1719580469831,16.17,144.35,144.29,16.17]
[1719580470341,16.17,144.34,144.29,16.17]
[1719580470831,16.1042,144.39,144.26,6.3719]
[1719580471005,16.17,144.36,144.27,81.40013359]
[1719580471213,16.17,144.37,144.27,80.0146]
[1719580471714,16.17,144.37,144.28,1.3853165]
[1719580472025,16.17,144.37,144.28,8.3393165]
[1719580473007,16.17,144.37,144.28,6.954]
[1719580473708,16.17,144.36,144.28,6.954]
[1719580474207,16.17,144.35,144.28,6.954]
[1719580474428,16.17,144.33,144.27,15.3346]
[1719580474635,16.17,144.32,144.27,15.3346]
[1719580474936,16.17,144.3,144.27,15.3346]
[1719580475130,16.17,144.28,144.24,16.6127]
[1719580475438,16.17,144.27,144.24,16.6127]
[1719580477237,16.17,144.28,144.24,16.6127]
[1719580478320,16.17,144.29,144.24,16.6127]
[1719580478619,16.17,144.29,144.24,32.7827]
[1719580479019,16.17,144.29,144.24,16.6127]
[1719580479645,15.9544,144.33,144.22,6.2224]
[1719580479852,16.17,144.24,144.2,15.0294]
[1719580480143,16.17,144.22,144.18,6.5383]
[1719580480324,80.1787,144.27,144.16,16.489]
[1719580480325,16.17,144.2,144.16,16.489]
[1719580480940,6.2639,144.25,144.16,32.659]
[1719580481117,16.17,144.21,144.16,32.659]
[1719580481530,16.17,144.21,144.16,38.36220773]
[1719580482723,6.2639,144.25,144.16,22.19220773]
[1719580484133,6.2639,144.25,144.17,1.38672296]
[1719580484460,6.2639,144.25,144.16,22.19220773]
[1719580486343,32.4,144.23,144.12,22.0235]
[1719580488253,32.4,144.23,144.12,27.58855072]
[1719580491635,32.4,144.23,144.13,6.952]
[1719580492043,32.4,144.23,144.12,27.58855072]
[1719580492941,21.4096,144.22,144.06,4.23933504]
[1719580493162,21.4096,144.22,144.05,15.3864]
[1719580493163,32.4,144.14,144.05,15.3864]
[1719580493367,38.4403,144.14,144.02,15.967]
[1719580493656,38.4403,144.14,144.04,6.3434717]
[1719580493853,6.0403,144.14,144.04,0.8175485]
[1719580494056,38.4403,144.14,144.04,0.8175485]
[1719580496928,15.3693,144.19,144.04,0.8175485]
[1719580496929,32.4,144.17,144.04,0.8175485]
[1719580499342,39.036,144.18,144.04,0.8175485]
[1719580501360,32.4,144.15,144.04,0.8175485]
[1719580502243,16.5011,144.14,144.04,0.8175485]
[1719580502456,32.4,144.12,144.04,0.8175485]
[1719580503056,16.5011,144.14,144.04,0.8175485]
[1719580503964,32.4,144.15,144.05,1.38771048]
[1719580504543,32.4,144.15,144.04,0.8175485]
[1719580504851,28.55657129,144.18,144.04,0.8175485]
[1719580504852,60.95657129,144.18,144.04,0.8175485]
[1719580505173,55.1889,144.18,144.05,6.0747]
[1719580507150,32.4,144.18,144.06,15.0818]
[1719580509682,15.9692,144.21,144.09,16.1683]
[1719580509974,5.76767129,144.23,144.09,16.1683]
[1719580510147,32.4,144.24,144.09,16.1683]
[1719580510971,20.98527129,144.29,144.12,21.4818]
[1719580511170,20.98527129,144.29,144.14,32.4]
[1719580511353,20.98527129,144.29,144.13,1.38674635]
[1719580511354,20.98527129,144.29,144.16,15.0045]
[1719580512279,15.2176,144.29,144.17,6.3641]
[1719580512951,32.4,144.27,144.17,6.3641]
[1719580513155,32.4,144.24,144.16,15.0045]
[1719580513367,32.4,144.24,144.14,6.1022]
[1719580513544,32.4,144.21,144.14,6.1022]
[1719580514747,16.053,144.23,144.14,6.1022]
[1719580515292,178.24,144.22,144.09,15.9627]
[1719580515457,184.00767129,144.22,144.09,15.9627]
[1719580516677,42.24767129,144.22,144.09,15.9627]
[1719580519864,100.0,144.21,144.09,15.9627]
[1719580520073,105.76767129,144.21,144.09,15.9627]
[1719580520269,57.2338,144.16,144.04,16.2526485]
[1719580520790,21.24147129,144.16,144.04,16.2526485]
[1719580524766,15.4738,144.16,144.04,16.2526485]
[1719580524966,7.23722531,144.19,144.04,16.2526485]
[1719580525167,57.70467129,144.2,144.04,16.2526485]
[1719580525394,24.17692517,144.19,144.04,16.2526485]
[1719580525694,57.70467129,144.2,144.04,16.2526485]
[1719580525897,24.16583324,144.19,144.05,6.3279]
[1719580526064,57.70467129,144.2,144.05,6.3279]
[1719580526273,24.16395249,144.19,144.05,6.3279]
[1719580526472,12.6673039,144.18,144.05,6.3279]
[1719580526680,57.70467129,144.2,144.06,15.9919]
[1719580526888,24.17451761,144.19,144.07,23.66897209]
[1719580527092,24.17451761,144.19,144.04,0.8175485]
[1719580527093,15.2653,144.24,144.1,6.2894]
[1719580527403,24.19589991,144.23,144.11,1.38713781]
[1719580527573,12.16087129,144.25,144.13,16.1519]
[1719580527767,24.22737503,144.24,144.13,16.1519]
[1719580527975,24.22737503,144.23,144.13,16.1519]
[1719580528198,6.3932,144.25,144.13,16.1519]
[1719580528376,11.52387654,144.24,144.13,16.1519]
[1719580528700,24.23050264,144.23,144.13,16.1519]
[1719580528884,6.3932,144.25,144.14,1.38719034]
[1719580529192,11.54246023,144.24,144.13,16.1519]
[1719580529374,12.72768997,144.23,144.13,16.1519]
[1719580529575,12.72768997,144.26,144.13,16.1519]
[1719580529792,11.55384315,144.25,144.13,16.1519]
[1719580530104,43.71298746,144.27,144.14,6.0708]
[1719580530279,24.30879316,144.26,144.14,6.0708]
[1719580530478,24.30879316,144.25,144.14,6.0708]
[1719580530788,24.32166985,144.24,144.14,6.0708]
[1719580530998,24.32166985,144.23,144.14,6.0708]
[1719580531177,47.16176914,144.27,144.14,6.0708]
[1719580531373,169.53884715,144.26,144.14,6.0708]
[1719580531594,24.33006547,144.25,144.14,6.0708]
[1719580531895,24.33006547,144.24,144.14,6.0708]
[1719580532097,24.33006547,144.23,144.14,6.0708]
[1719580532277,24.33006547,144.22,144.14,6.0708]
[1719580532483,5.76767129,144.25,144.14,6.0708]
[1719580532689,11.63210305,144.24,144.14,6.0708]
[1719580532889,24.45894932,144.23,144.14,6.0708]
[1719580533076,24.45894932,144.22,144.14,6.0708]
[1719580533406,5.76767129,144.25,144.14,6.0708]
[1719580533585,11.64128136,144.24,144.14,6.0708]
[1719580533787,24.47694511,144.23,144.14,6.0708]
[1719580533988,24.47694511,144.22,144.14,6.0708]
[1719580534199,41.76,144.24,144.14,6.0708]
[1719580534381,30.20042004,144.23,144.14,6.0708]
[1719580534579,24.43274875,144.22,144.14,6.0708]
[1719580534783,24.43274875,144.21,144.14,6.0708]
[1719580534988,5.76767129,144.23,144.14,6.0708]
[1719580535294,11.61066632,144.22,144.14,6.0708]
[1719580535507,5.76767129,144.23,144.14,6.0708]
[1719580535508,11.61066632,144.21,144.14,6.0708]
[1719580535681,5.76767129,144.23,144.14,6.0708]
[1719580535883,11.62453577,144.22,144.14,6.0708]
[1719580536091,3.52156786,144.26,144.14,6.0708]
[1719580536708,11.6561356,144.25,144.14,6.0708]
[1719580536883,24.508354,144.24,144.14,6.0708]
[1719580537091,24.508354,144.23,144.14,6.0708]
[1719580537404,24.508354,144.22,144.14,6.0708]
[1719580537600,3.52156786,144.26,144.14,6.0708]
[1719580537802,56.9514949,144.25,144.14,6.0708]
[1719580538004,78.24,144.23,144.13,16.1519]
[1719580538203,3.52156786,144.21,144.13,16.1519]
[1719580538411,11.66992704,144.2,144.13,16.1519]
[1719580538611,12.86446122,144.19,144.1,6.2692]
[1719580538912,11.66992704,144.18,144.1,6.2692]
[1719580539216,111.36446122,144.17,144.09,16.1982]
[1719580539375,111.36446122,144.17,144.06,6.6216]
[1719580539376,109.28923915,144.17,144.06,6.6216]
[1719580539804,151.04923915,144.17,144.06,6.6216]
[1719580539991,36.48,144.15,144.06,6.6216]
[1719580540202,5.76767129,144.14,144.06,6.6216]
[1719580552725,32.46,144.14,144.06,6.6216]
[1719580554211,32.46,144.11,144.06,6.6216]
[1719580560827,32.46,144.13,144.06,6.6216]
[1719580561197,32.46,144.1,144.06,6.6216]
[1719580562711,32.46,144.1,144.05,15.6447]
[1719580565803,141.76,144.12,144.04,0.8175485]
[1719580565804,32.46,144.07,144.04,0.8175485]
[1719580566129,5.76767129,144.11,144.04,0.8175485]
[1719580566444,6.0007,144.16,144.04,0.8175485]
[1719580566445,32.46,144.16,144.05,15.9127]
[1719580566727,11.70955505,144.15,144.05,15.9127]
[1719580567033,32.46,144.16,144.05,15.9127]
[1719580567034,74.22,144.16,144.05,15.9127]
[1719580567219,11.71159274,144.15,144.05,15.9127]
[1719580568421,153.47159274,144.15,144.05,15.9127]
[1719580568622,32.46,144.13,144.05,15.9127]
[1719580570928,74.22,144.13,144.05,15.9127]
[1719580571931,32.46,144.1,144.04,0.8175485]
[1719580572235,32.46,144.06,144.04,0.8175485]
[1719580575238,32.46,144.07,144.04,0.8175485]
[1719580575735,41.76,144.05,143.95,22.3963]
[1719580575925,32.46,144.02,143.95,22.3963]
[1719580576318,32.46,144.03,143.95,22.3963]
[1719580577242,47.52767129,144.06,143.95,22.3963]
[1719580577552,32.46,144.02,143.95,22.3963]
[1719580578709,100.0,144.05,143.95,22.3963]
[1719580578710,78.35,144.03,143.95,22.3963]
[1719580579847,36.59,144.03,143.95,22.3963]
[1719580583022,11.74940344,144.02,143.95,16.3863]
[1719580583225,53.50940344,144.02,143.95,16.3863]
[1719580583450,136.59,144.03,143.91,22.3775]
[1719580583451,168.84999091,144.01,143.91,22.3775]
[1719580583750,168.84999091,144.01,143.91,16.1627]
[1719580583751,36.59,143.99,143.91,16.1627]
[1719580583917,11.74829091,143.98,143.91,16.1627]
[1719580585425,53.50829091,143.98,143.91,16.1627]
[1719580585621,47.52767129,143.98,143.9,0.8175485]
[1719580586060,100.0,143.97,143.9,0.8175485]
[1719580586238,15.5227,143.94,143.9,0.8175485]
[1719580586538,21.707,143.94,143.9,0.8175485]
[1719580586744,21.29037129,143.94,143.9,0.8175485]
[1719580586921,5.76767129,143.94,143.9,0.8175485]
[1719580587121,5.76767129,144.0,143.9,0.8175485]
[1719580588021,17.50117642,144.0,143.9,0.8175485]
[1719580588221,5.76767129,144.0,143.9,0.8175485]
[1719580588425,47.52767129,144.0,143.9,0.8175485]
[1719580588831,5.76767129,144.0,143.9,0.8175485]
[1719580589955,59.28187059,144.0,143.9,0.8175485]
[1719580590130,11.7541993,143.99,143.9,0.8175485]
[1719580590334,47.52767129,144.0,143.9,0.8175485]
[1719580591056,5.76767129,144.0,143.9,7.7667485]
[1719580591361,52.6149,144.02,143.91,15.7251]
[1719580591567,59.85195803,144.02,143.91,22.6737]
[1719580591743,43.82705803,144.02,143.91,15.7251]
[1719580592565,43.82705803,144.02,143.91,24.06323755]
[1719580592859,7.23705803,144.02,143.93,6.9477]
[1719580593037,5.76767129,144.04,143.94,8.33657726]
[1719580593237,11.74203014,144.05,143.92,6.4331]
[1719580593437,11.74203014,144.05,143.92,13.3813]
[1719580593648,11.74203014,144.05,143.92,6.4331]
[1719580593961,41.76,144.05,143.92,6.4331]
[1719580594345,41.76,144.05,143.92,13.3813]
[1719580594652,49.59322942,144.06,143.92,13.3812]
[1719580594856,91.35322942,144.06,143.92,6.4331]
[1719580595883,91.35322942,144.06,143.9,0.8175485]
[1719580595884,7.23555813,144.06,143.95,15.9069]
[1719580596074,147.52767129,144.12,143.96,6.3069]
[1719580596387,18.997246,144.11,144.0,13.2513]
[1719580596681,7.2355906,144.11,144.02,6.9431]
[1719580596979,41.76,144.14,144.02,1.38849623]
[1719580597274,41.76,144.14,144.01,22.5451]
[1719580597275,41.76,144.12,144.01,15.6014]
[1719580598269,41.76,144.14,144.01,15.6014]
[1719580598472,41.76,144.14,144.01,16.98998257]
[1719580598676,7.23404863,144.15,144.03,6.124]
[1719580598979,7.23404863,144.15,144.04,1.3882807]
[1719580599149,5.76767129,144.16,144.04,15.0673]
[1719580599554,19.0285365,144.18,144.04,15.0673]
[1719580599854,9.27527716,144.21,144.04,15.0673]
[1719580599855,5.76767129,144.21,144.04,15.0673]
[1719580600054,17.56869354,144.21,144.06,16.0502]
[1719580600285,7.23788044,144.21,144.09,6.2184]
[1719580600663,36.59,144.23,144.09,6.2184]
[1719580600860,8.82100024,144.24,144.09,6.2184]
[1719580601162,11.81845442,144.23,144.09,6.2184]
[1719580601458,21.82626022,144.24,144.09,6.2184]
[1719580601874,21.82626022,144.24,144.1,0.88559863]
[1719580601875,15.3294983,144.24,144.1,0.88559863]
[1719580602176,15.3294983,144.24,144.11,1.38747275]
[1719580603376,15.3294983,144.24,144.09,6.2184]
[1719580604179,100.0,144.23,144.09,6.2184]
[1719580604762,15.3294983,144.24,144.09,6.2184]
[1719580605153,15.3294983,144.24,144.1,1.3876759]
[1719580605482,15.3294983,144.24,144.11,24.13997342]
[1719580605655,15.3294983,144.24,144.12,1.38747342]
[1719580606253,15.3294983,144.24,144.13,6.0399]
[1719580606447,20.0,144.23,144.13,6.0399]
[1719580609087,61.76,144.23,144.13,6.0399]
[1719580610585,141.76,144.22,144.13,6.0399]
[1719580610759,20.0,144.21,144.13,6.0399]
[1719580610959,67.52767129,144.21,144.13,6.0399]
[1719580611183,41.76,144.19,144.13,6.0399]
[1719580611365,41.76,144.17,144.09,6.5857]
[1719580611573,20.0,144.16,144.09,6.5857]
[1719580613461,20.0,144.19,144.09,7.97369321]
[1719580613662,5.76767129,144.22,144.11,6.3342]
[1719580613881,2.32423832,144.24,144.11,6.3342]
[1719580613882,48.9978536,144.23,144.11,6.3342]
[1719580614090,148.9978536,144.23,144.11,6.3342]
[1719580614624,100.0,144.19,144.11,6.3342]
[1719580614888,41.76,144.22,144.11,6.3342]
[1719580615260,7.2378536,144.23,144.11,7.72186853]
[1719580615592,48.9978536,144.23,144.11,6.3342]
[1719580615772,141.76,144.22,144.11,6.3342]
[1719580615975,100.0,144.2,144.11,6.3342]
[1719580616172,20.0,144.19,144.11,6.3342]
[1719580616680,20.0,144.21,144.11,6.3342]
[1719580617274,20.0,144.21,144.12,16.0247]
[1719580617865,20.0,144.22,144.12,16.0247]
[1719580618287,20.0,144.22,144.13,6.348]
[1719580618466,7.2378536,144.23,144.14,17.70735388]
[1719580618674,36.59,144.27,144.16,6.6452]
[1719580618988,41.76,144.28,144.17,15.9512]
[1719580620398,41.76,144.26,144.17,15.9512]
[1719580620605,20.0,144.25,144.17,15.9512]
[1719580620773,120.0,144.25,144.17,15.9512]
[1719580621091,161.76,144.25,144.17,15.9512]
[1719580622495,61.76,144.25,144.17,15.9512]
[1719580624398,20.0,144.25,144.17,15.9512]
[1719580624700,20.0,144.26,144.17,15.9512]
[1719580625187,161.76,144.28,144.17,15.9512]
[1719580626190,13.00169096,144.29,144.17,15.9512]
[1719580627287,13.00169096,144.29,144.17,17.33820577]
[1719580627497,13.00169096,144.29,144.19,15.6653]
[1719580628383,20.0,144.28,144.19,15.6653]
[1719580629792,20.0,144.31,144.19,15.6653]
[1719580630477,20.0,144.31,144.2,6.5149]
[1719580630793,20.0,144.32,144.2,6.5149]
[1719580631297,42.35767129,144.34,144.21,16.5138]
[1719580631490,84.11767129,144.34,144.21,17.9003927]
[1719580632306,84.11767129,144.34,144.21,16.5138]
[1719580632796,184.11767129,144.34,144.21,16.5138]
[1719580632970,41.76,144.31,144.21,16.5138]
[1719580633173,20.0,144.3,144.21,16.5138]
[1719580633586,7.2269723,144.35,144.23,15.9225]
[1719580633793,16.2997,144.37,144.23,15.9225]
[1719580633794,100.0,144.36,144.23,15.9225]
[1719580634007,102.31936027,144.36,144.23,15.9225]
[1719580634188,108.08703156,144.36,144.23,15.9225]
[1719580634382,41.76,144.35,144.23,15.9225]
[1719580634713,108.08703156,144.36,144.25,15.5533]
[1719580634714,8.08703156,144.36,144.25,15.5533]
[1719580634884,8.08703156,144.36,144.24,1.38650639]
[1719580634885,7.216242,144.37,144.29,15.5533]
[1719580635089,0.8175485,144.4,144.29,15.5533]
[1719580635898,103.13627353,144.4,144.29,15.5533]
[1719580636112,3.13627353,144.4,144.29,15.5533]
[1719580636298,20.0,144.39,144.3,53.02514556]
[1719580636610,0.8175485,144.4,144.3,51.6393]
[1719580637323,100.0,144.37,144.3,51.6393]
[1719580637609,100.0,144.37,144.3,6.6393]
[1719580637826,105.76767129,144.37,144.3,6.6393]
[1719580638028,25.76767129,144.36,144.3,6.6393]
[1719580638312,25.76767129,144.36,144.29,10.92959133]
[1719580638989,25.76767129,144.36,144.3,45.0]
[1719580639796,20.0,144.36,144.3,45.0]
[1719580639994,20.0,144.38,144.3,45.0]
[1719580640401,20.0,144.39,144.3,45.0]
[1719580640586,100.0,144.37,144.29,10.92959133]
[1719580640792,20.0,144.36,144.29,10.92959133]